[Event "DVM U14 2024"]
[Site "Heidelberg"]
[Date "2024.12.28"]
[Round "4"]
[White "Bauer, Laura Sophie"]
[Black "Ollhoff, Hannes"]
[Result "1-0"]
[ECO "C10"]
[WhiteElo "1926"]
[BlackElo "1801"]
[Annotator "NA RC"]
[PlyCount "69"]
[EventDate "2024.12.23"]
[EventType "team-tourn"]
[EventRounds "7"]
[EventCountry "GER"]
[SourceTitle "playchess.com"]
[Source "ChessBase"]
[SourceQuality "1"]
[TimeControl "40/5400+30:1800+30"]

1. e4 {[%emt 0:00:02]} e6 {[%emt 0:00:22]} 2. d4 {[%emt 0:00:05]} d5 {[%emt 0:00:06]} 3. Nd2 {[%emt 0:00:07]} dxe4 {[%emt 0:00:32]} 4. Nxe4 {[%emt 0:00:51]} Nd7 {[%emt 0:00:41]} 5. Nf3 {[%emt 0:00:23]} Ngf6 {[%emt 0:00:17]} 6. Nxf6+ {[%emt 0:01:02]} Nxf6 {[%emt 0:00:09]} 7. Bd3 {[%emt 0:02:36]} c5 {[%emt 0:01:36]} 8. dxc5 {[%emt 0:06:12]} Bxc5 {[%emt 0:01:24]} 9. O-O {[%emt 0:01:01]} O-O {[%emt 0:01:37]} 10. c3 {[%emt 0:04:36]} b6 {[%emt 0:02:05]} 11. Bg5 {[%emt 0:06:54]} Bb7 $11 {[%emt 0:04:34]} 12. Qe2 {[%emt 0:09:28]} Qc7 {[%emt 0:04:17]} 13. Bxf6 {[%emt 0:04:12]} gxf6 {[%emt 0:00:17]} 14. Be4 {[%emt 0:05:10]} Bxe4 {[%emt 0:07:39]} 15. Qxe4 {[%emt 0:00:06]} f5 {[%emt 0:01:23]} 16. Qh4 {[%emt 0:01:39]} Be7 {[%emt 0:01:18]} 17. Ng5 {[%emt 0:01:52]} Bxg5 {[%emt 0:00:12]} 18. Qxg5+ {[%emt 0:00:04]} Kh8 {[%emt 0:00:06]} 19. Qf6+ {[%emt 0:00:23]} Kg8 {[%emt 0:00:05]} 20. Qg5+ {[%emt 0:00:07]} Kh8 {[%emt 0:00:04]} 21. Qf6+ {[%emt 0:00:03]} Kg8 {[%emt 0:00:06]} 22. Rae1 {[%emt 0:08:11]} Qd8 {[%emt 0:06:19]} 23. Qe5 {[%emt 0:00:50]} Qb8 {[%emt 0:04:00]} 24. Qf6 {[%emt 0:03:17]} Qd8 {[%emt 0:06:39]} 25. Qe5 {[%emt 0:04:48]} Qb8 {[%emt 0:02:28]} 26. Qe3 {[%emt 0:00:58]} f4 {[%emt 0:32:38]} 27. Qd4 {[%emt 0:03:06]} Rd8 {[%emt 0:04:55]} 28. Qf6 {[%emt 0:00:16]} Rd5 {[%emt 0:01:03]} 29. Rxe6 {[%emt 0:00:36]} Qf8 {[%emt 0:05:51]} 30. Re4 {[%emt 0:01:22]} Qd6 {[%emt 0:00:54]} 31. Qh4 {[%emt 0:09:25]} Rf5 {[%emt 0:04:35]} 32. Qg4+ {[%emt 0:01:01]} Qg6 {[%emt 0:00:09]} 33. Rxf4 {[%emt 0:00:47]} Rg5 {[%emt 0:02:23]} 34. Qf3 {[%emt 0:00:06]} Rd8 {[%emt 0:00:24]} 35. h4 {[%emt 0:01:24]} 1-0

[Event "DVM U14 2024"]
[Site "Heidelberg"]
[Date "2024.12.28"]
[Round "4"]
[White "Neumeier, Valentina"]
[Black "Nguyen, Bach Khoi"]
[Result "1/2-1/2"]
[ECO "C54"]
[WhiteElo "1877"]
[BlackElo "1590"]
[Annotator "NA RC"]
[PlyCount "57"]
[EventDate "2024.12.23"]
[EventType "team-tourn"]
[EventRounds "7"]
[EventCountry "GER"]
[SourceTitle "playchess.com"]
[Source "ChessBase"]
[SourceQuality "1"]
[TimeControl "40/5400+30:1800+30"]

1. e4 {[%emt 0:00:01]} e5 {[%emt 0:00:07]} 2. Nf3 {[%emt 0:00:06]} Nc6 {[%emt 0:00:12]} 3. Bc4 {[%emt 0:00:06]} Bc5 {[%emt 0:00:20]} 4. c3 {[%emt 0:00:05]} Nf6 {[%emt 0:00:11]} 5. d3 {[%emt 0:00:05]} O-O {[%emt 0:00:06]} 6. O-O {[%emt 0:01:18]} d5 {[%emt 0:00:20]} 7. exd5 {[%emt 0:00:36]} Nxd5 {[%emt 0:00:07]} 8. Re1 {[%emt 0:04:39]} Bg4 {[%emt 0:00:09]} 9. Nbd2 {[%emt 0:02:37]} Nb6 {[%emt 0:00:38]} 10. b4 $11 {[%emt 0:10:40]} Be7 {[%emt 0:00:55]} 11. Qe2 {[%emt 0:06:51]} Nxc4 {[%emt 0:02:05]} 12. Nxc4 {[%emt 0:00:16]} f6 {[%emt 0:01:27]} 13. b5 {[%emt 0:01:36]} Nb8 {[%emt 0:01:59]} 14. d4 {[%emt 0:05:47]} Bxf3 {[%emt 0:30:34]} 15. Qxf3 {[%emt 0:14:48]} c6 {[%emt 0:11:14]} 16. bxc6 {[%emt 0:02:58]} Nxc6 {[%emt 0:00:25]} 17. d5 {[%emt 0:03:42]} Na5 {[%emt 0:05:06]} 18. Ne3 {[%emt 0:03:27]} Rc8 {[%emt 0:02:53]} 19. Bb2 {[%emt 0:04:59]} Nc4 {[%emt 0:02:37]} 20. Nxc4 {[%emt 0:00:22]} Rxc4 {[%emt 0:01:06]} 21. Qd3 {[%emt 0:01:27]} Qc7 {[%emt 0:07:12]} 22. Rad1 {[%emt 0:02:46]} Bd6 {[%emt 0:02:28]} 23. Re4 {[%emt 0:09:35]} Rxe4 {[%emt 0:01:30]} 24. Qxe4 {[%emt 0:00:08]} f5 {[%emt 0:00:50]} 25. Qe2 {[%emt 0:00:19]} e4 {[%emt 0:01:24]} 26. g3 {[%emt 0:00:29]} Qe7 {[%emt 0:02:50]} 27. Re1 {[%emt 0:07:21]} Re8 {[%emt 0:04:42]} 28. Bc1 {[%emt 0:04:47]} h6 {[%emt 0:05:11]} 29. Qh5 {[%emt 0:02:05]} 1/2-1/2

[Event "DVM U14 2024"]
[Site "Heidelberg"]
[Date "2024.12.28"]
[Round "4"]
[White "Klein, Deniz"]
[Black "Hasanovic, Arian"]
[Result "1-0"]
[ECO "A22"]
[WhiteElo "1852"]
[BlackElo "1685"]
[Annotator "NA RC"]
[PlyCount "101"]
[EventDate "2024.12.23"]
[EventType "team-tourn"]
[EventRounds "7"]
[EventCountry "GER"]
[SourceTitle "playchess.com"]
[Source "ChessBase"]
[SourceQuality "1"]
[TimeControl "40/5400+30:1800+30"]

1. c4 {[%emt 0:00:03]} e5 {[%emt 0:00:03]} 2. g3 {[%emt 0:00:05]} Nf6 {[%emt 0:00:04]} 3. Bg2 {[%emt 0:00:06]} d5 {[%emt 0:00:06]} 4. cxd5 {[%emt 0:00:04]} Nxd5 {[%emt 0:00:05]} 5. Nc3 {[%emt 0:00:04]} Nf6 {[%emt 0:00:05]} 6. Nf3 {[%emt 0:00:15]} Bd6 {[%emt 0:00:26]} 7. O-O {[%emt 0:00:12]} O-O {[%emt 0:01:13]} 8. a3 {[%emt 0:01:09]} Nc6 {[%emt 0:00:56]} 9. b4 {[%emt 0:00:41]} h6 {[%emt 0:01:13]} 10. d3 {[%emt 0:00:28]} Bf5 {[%emt 0:00:21]} 11. Be3 {[%emt 0:04:59]} Re8 {[%emt 0:04:00]} 12. Nd2 {[%emt 0:05:17]} Qd7 {[%emt 0:04:59]} 13. Rc1 {[%emt 0:10:36]} Bh3 {[%emt 0:06:23]} 14. Nce4 {[%emt 0:05:18]} Nxe4 {[%emt 0:08:25]} 15. Nxe4 {[%emt 0:00:27]} Bxg2 {[%emt 0:01:27]} 16. Kxg2 {[%emt 0:00:05]} f5 {[%emt 0:03:47]} 17. Nc5 {[%emt 0:03:07]} Bxc5 {[%emt 0:08:09]} 18. Rxc5 {[%emt 0:00:51]} b6 {[%emt 0:09:23]} 19. Rc4 {[%emt 0:04:49]} Ne7 {[%emt 0:10:24]} 20. Qc2 {[%emt 0:07:03]} Rac8 {[%emt 0:05:52]} 21. Rc1 {[%emt 0:04:07]} c6 {[%emt 0:03:30]} 22. a4 {[%emt 0:14:41]} Qb7 {[%emt 0:03:40]} 23. Kg1 {[%emt 0:01:25]} Rf8 {[%emt 0:08:49]} 24. Bd2 {[%emt 0:11:15]} Rf6 {[%emt 0:04:38]} 25. Bc3 {[%emt 0:07:11]} Re6 {[%emt 0:03:56]} 26. Qb3 {[%emt 0:02:39]} Qd7 {[%emt 0:02:49]} 27. Bb2 {[%emt 0:01:29]} Kh7 {[%emt 0:00:55]} 28. a5 {[%emt 0:02:04]} f4 {[%emt 0:04:22]} 29. Re4 {[%emt 0:02:35]} Ng6 {[%emt 0:00:41]} 30. axb6 {[%emt 0:03:12]} axb6 {[%emt 0:00:17]} 31. Qc2 {[%emt 0:02:18]} Qe7 {[%emt 0:01:06]} 32. Qc3 {[%emt 0:01:41]} Qg5 {[%emt 0:01:20]} 33. d4 {[%emt 0:01:52]} Rce8 {[%emt 0:01:27]} 34. Qc4 {[%emt 0:01:26]} fxg3 {[%emt 0:00:57]} 35. hxg3 {[%emt 0:00:15]} Qd2 {[%emt 0:00:08]} 36. Rc2 {[%emt 0:02:36]} Qd1+ {[%emt 0:00:21]} 37. Kg2 {[%emt 0:00:05]} exd4 {[%emt 0:00:11]} 38. Rxe6 {[%emt 0:00:18]} Rxe6 {[%emt 0:00:08]} 39. Qxd4 {[%emt 0:01:56]} Qxd4 {[%emt 0:02:11]} 40. Bxd4 {[%emt 0:00:05]} b5 {[%emt 0:00:05]} 41. f4 {[%emt 0:31:15]} Ne7 {[%emt 0:31:30]} 42. Kf3 {[%emt 0:00:00]} Kg8 {[%emt 0:00:00]} 43. e4 {[%emt 0:00:00]} g6 {[%emt 0:00:00]} 44. g4 {[%emt 0:00:00]} Kf7 {[%emt 0:00:00]} 45. Bc5 {[%emt 0:00:00]} Ng8 {[%emt 0:00:00]} 46. f5 {[%emt 0:00:00]} gxf5 {[%emt 0:00:00]} 47. gxf5 {[%emt 0:00:00]} Rf6 {[%emt 0:00:00]} 48. Kf4 {[%emt 0:00:00]} h5 {[%emt 0:00:00]} 49. e5 {[%emt 0:00:00]} Rh6 {[%emt 0:00:00]} 50. e6+ {[%emt 0:00:00]} Ke8 {[%emt 0:00:00]} 51. Ra2 {[%emt 0:00:00]} 1-0

[Event "DVM U14 2024"]
[Site "Heidelberg"]
[Date "2024.12.28"]
[Round "4"]
[White "Haertel, Leon"]
[Black "Kaplan, Arne"]
[Result "1/2-1/2"]
[ECO "E21"]
[WhiteElo "1839"]
[BlackElo "1710"]
[Annotator "NA RC"]
[PlyCount "42"]
[EventDate "2024.12.23"]
[EventType "team-tourn"]
[EventRounds "7"]
[EventCountry "GER"]
[SourceTitle "playchess.com"]
[Source "ChessBase"]
[SourceQuality "1"]
[TimeControl "40/5400+30:1800+30"]

1. d4 {[%emt 0:00:05]} Nf6 {[%emt 0:00:13]} 2. c4 {[%emt 0:00:17]} e6 {[%emt 0:00:12]} 3. Nc3 {[%emt 0:00:39]} Bb4 {[%emt 0:00:09]} 4. e3 {[%emt 0:00:14]} b6 {[%emt 0:00:10]} 5. Bd2 {[%emt 0:01:14]} Bb7 {[%emt 0:01:32]} 6. Nf3 {[%emt 0:00:25]} O-O {[%emt 0:01:16]} 7. Bd3 {[%emt 0:01:22]} Bxc3 {[%emt 0:01:11]} 8. Bxc3 {[%emt 0:00:35]} Ne4 {[%emt 0:00:56]} 9. Bxe4 {[%emt 0:05:06]} Bxe4 {[%emt 0:00:23]} 10. d5 {[%emt 0:02:02]} Bg6 {[%emt 0:08:48]} 11. Qd4 {[%emt 0:10:41]} f6 {[%emt 0:00:29]} 12. dxe6 {[%emt 0:00:16]} dxe6 {[%emt 0:00:14]} 13. O-O-O {[%emt 0:00:49]} Nc6 {[%emt 0:05:50]} 14. Qd7 {[%emt 0:16:24]} Qxd7 {[%emt 0:01:44]} 15. Rxd7 {[%emt 0:00:08]} Rac8 {[%emt 0:00:21]} 16. b4 {[%emt 0:00:30]} Rfd8 {[%emt 0:06:22]} 17. Rhd1 {[%emt 0:00:42]} Be8 {[%emt 0:04:22]} 18. Rxd8 {[%emt 0:04:52]} Rxd8 {[%emt 0:00:09]} 19. Nd4 {[%emt 0:06:37]} e5 {[%emt 0:00:42]} 20. Nxc6 {[%emt 0:12:40]} Rxd1+ {[%emt 0:00:12]} 21. Kxd1 {[%emt 0:00:06]} Bxc6 {[%emt 0:01:00]} 1/2-1/2

[Event "DVM U14 2024"]
[Site "Heidelberg"]
[Date "2024.12.28"]
[Round "4"]
[White "Geschke, David"]
[Black "Riechenberg, Sebastian"]
[Result "0-1"]
[ECO "E38"]
[WhiteElo "1831"]
[BlackElo "2041"]
[Annotator "NA RC"]
[PlyCount "104"]
[EventDate "2024.12.23"]
[EventType "team-tourn"]
[EventRounds "7"]
[EventCountry "GER"]
[SourceTitle "playchess.com"]
[Source "ChessBase"]
[SourceQuality "1"]
[TimeControl "40/5400+30:1800+30"]

1. d4 {[%emt 0:00:03]} Nf6 {[%emt 0:00:22]} 2. c4 {[%emt 0:00:03]} e6 {[%emt 0:00:08]} 3. Nc3 {[%emt 0:00:16]} Bb4 {[%emt 0:00:09]} 4. Nf3 {[%emt 0:00:34]} c5 {[%emt 0:00:08]} 5. e3 {[%emt 0:01:45]} O-O {[%emt 0:00:17]} 6. Qc2 {[%emt 0:01:42]} d5 {[%emt 0:02:13]} 7. cxd5 {[%emt 0:02:08]} cxd4 {[%emt 0:00:56]} 8. Nxd4 {[%emt 0:01:44]} exd5 {[%emt 0:03:10]} 9. Bd2 {[%emt 0:05:29]} Nc6 {[%emt 0:00:30]} 10. Nxc6 {[%emt 0:04:40]} bxc6 {[%emt 0:00:07]} 11. Bd3 $11 {[%emt 0:00:56]} c5 {[%emt 0:11:52]} 12. O-O {[%emt 0:06:05]} Be6 {[%emt 0:12:19]} 13. Rad1 {[%emt 0:02:36]} Rc8 {[%emt 0:00:56]} 14. Qb1 {[%emt 0:02:02]} Ba5 {[%emt 0:01:34]} 15. Ne2 {[%emt 0:11:54]} Bc7 {[%emt 0:04:49]} 16. Bc3 {[%emt 0:02:30]} h5 {[%emt 0:04:05]} 17. Bf5 {[%emt 0:14:40]} Qd7 {[%emt 0:02:51]} 18. Bxe6 {[%emt 0:04:54]} fxe6 {[%emt 0:01:45]} 19. Qc2 {[%emt 0:09:58]} e5 {[%emt 0:02:07]} 20. f4 {[%emt 0:04:22]} Rfe8 {[%emt 0:06:27]} 21. Qg6 {[%emt 0:09:20]} Qg4 {[%emt 0:03:03]} 22. Qxg4 {[%emt 0:01:49]} Nxg4 {[%emt 0:00:12]} 23. Rf3 {[%emt 0:01:25]} d4 {[%emt 0:00:10]} 24. Bd2 {[%emt 0:03:16]} e4 {[%emt 0:13:58]} 25. Rh3 {[%emt 0:02:53]} d3 {[%emt 0:01:56]} 26. Nc3 {[%emt 0:05:11]} Nf6 {[%emt 0:02:40]} 27. Rg3 {[%emt 0:00:26]} Bb6 {[%emt 0:03:24]} 28. Nb5 {[%emt 0:00:46]} Rc6 {[%emt 0:01:17]} 29. Kf2 {[%emt 0:00:30]} c4 {[%emt 0:00:44]} 30. h3 {[%emt 0:00:21]} Nd5 {[%emt 0:00:33]} 31. Nc3 {[%emt 0:00:14]} Nxf4 {[%emt 0:02:21]} 32. Rg5 {[%emt 0:00:59]} Rg6 {[%emt 0:06:06]} 33. Rxg6 {[%emt 0:00:29]} Nxg6 {[%emt 0:00:01]} 34. Nd5 {[%emt 0:00:45]} Ne5 {[%emt 0:01:56]} 35. Bc3 {[%emt 0:00:21]} Kf7 {[%emt 0:01:37]} 36. Bd4 {[%emt 0:00:35]} Bxd4 {[%emt 0:01:45]} 37. exd4 {[%emt 0:00:02]} Rd8 {[%emt 0:00:31]} 38. Nc3 {[%emt 0:00:59]} Nc6 {[%emt 0:03:09]} 39. Ke3 {[%emt 0:00:22]} Nxd4 {[%emt 0:00:53]} 40. Kxe4 {[%emt 0:00:39]} Ke6 {[%emt 0:03:41]} 41. Rd2 {[%emt 0:03:08]} g5 {[%emt 0:03:19]} 42. Nd1 {[%emt 0:02:31]} Nf5 {[%emt 0:00:37]} 43. Kf3 {[%emt 0:13:08]} Rd4 {[%emt 0:03:10]} 44. g3 {[%emt 0:00:37]} h4 {[%emt 0:04:45]} 45. g4 {[%emt 0:05:15]} Rf4+ {[%emt 0:00:43]} 46. Kg2 {[%emt 0:00:02]} Nd6 {[%emt 0:00:25]} 47. Nc3 {[%emt 0:01:06]} Ne4 {[%emt 0:00:10]} 48. Nxe4 {[%emt 0:00:30]} Rxe4 {[%emt 0:00:00]} 49. Kf3 {[%emt 0:00:48]} Kd5 {[%emt 0:00:28]} 50. b3 {[%emt 0:00:39]} Kd4 {[%emt 0:00:06]} 51. bxc4 {[%emt 0:01:14]} Rf4+ {[%emt 0:00:01]} 52. Kg2 {[%emt 0:00:19]} Ke5 {[%emt 0:00:34]} 0-1

[Event "DVM U14 2024"]
[Site "Heidelberg"]
[Date "2024.12.28"]
[Round "4"]
[White "Kovalyov, Dima"]
[Black "Zhu, Timo Kaiheng"]
[Result "1-0"]
[ECO "E06"]
[WhiteElo "1829"]
[BlackElo "1615"]
[Annotator "NA RC"]
[PlyCount "93"]
[EventDate "2024.12.23"]
[EventType "team-tourn"]
[EventRounds "7"]
[EventCountry "GER"]
[SourceTitle "playchess.com"]
[Source "ChessBase"]
[SourceQuality "1"]
[TimeControl "40/5400+30:1800+30"]

1. d4 {[%emt 0:00:03]} d5 {[%emt 0:00:12]} 2. Nf3 {[%emt 0:00:03]} Nf6 {[%emt 0:00:36]} 3. g3 {[%emt 0:00:05]} e6 {[%emt 0:00:30]} 4. Bg2 {[%emt 0:00:04]} c5 {[%emt 0:01:10]} 5. c4 {[%emt 0:01:55]} Nc6 {[%emt 0:00:57]} 6. O-O {[%emt 0:00:18]} Be7 {[%emt 0:00:24]} 7. dxc5 {[%emt 0:01:40]} Bxc5 {[%emt 0:00:19]} 8. cxd5 {[%emt 0:00:19]} Qxd5 {[%emt 0:00:47]} 9. Qxd5 {[%emt 0:00:26]} Nxd5 {[%emt 0:00:09]} 10. Bd2 {[%emt 0:03:07]} O-O {[%emt 0:03:21]} 11. Nc3 {[%emt 0:01:52]} Nxc3 {[%emt 0:00:30]} 12. Bxc3 {[%emt 0:00:12]} f6 {[%emt 0:01:14]} 13. Rac1 {[%emt 0:02:18]} Bb6 {[%emt 0:00:41]} 14. Rfd1 {[%emt 0:02:31]} e5 {[%emt 0:00:38]} 15. b4 {[%emt 0:05:14]} a5 {[%emt 0:03:55]} 16. b5 {[%emt 0:03:27]} Ne7 {[%emt 0:01:23]} 17. a4 {[%emt 0:02:14]} Bg4 {[%emt 0:01:36]} 18. h3 {[%emt 0:00:30]} Bh5 {[%emt 0:00:41]} 19. g4 {[%emt 0:01:00]} Bf7 {[%emt 0:00:15]} 20. Rd7 {[%emt 0:00:40]} Nd5 {[%emt 0:00:35]} 21. Rxb7 {[%emt 0:02:04]} Nxc3 {[%emt 0:00:33]} 22. Rxc3 {[%emt 0:00:09]} Rab8 {[%emt 0:00:17]} 23. Rxb8 {[%emt 0:00:28]} Rxb8 {[%emt 0:00:09]} 24. Nd2 {[%emt 0:07:46]} Bd4 {[%emt 0:01:24]} 25. Rc6 {[%emt 0:03:45]} Bb6 {[%emt 0:07:10]} 26. Nb1 {[%emt 0:02:27]} Bb3 {[%emt 0:01:20]} 27. Nc3 {[%emt 0:00:22]} Kf8 {[%emt 0:01:36]} 28. Bd5 {[%emt 0:01:14]} Bxd5 {[%emt 0:02:16]} 29. Nxd5 {[%emt 0:00:06]} Bd8 {[%emt 0:01:21]} 30. Ne3 {[%emt 0:02:15]} Kf7 {[%emt 0:01:32]} 31. Nc4 {[%emt 0:00:09]} Ra8 {[%emt 0:00:56]} 32. Ra6 {[%emt 0:01:08]} Rb8 {[%emt 0:01:08]} 33. Nxa5 {[%emt 0:00:17]} Bxa5 {[%emt 0:00:30]} 34. Rxa5 {[%emt 0:00:05]} Ke6 {[%emt 0:00:10]} 35. Ra6+ {[%emt 0:00:25]} Kd5 {[%emt 0:00:27]} 36. b6 {[%emt 0:00:37]} Kc6 {[%emt 0:00:34]} 37. a5 {[%emt 0:00:07]} Rb7 {[%emt 0:00:47]} 38. Kg2 {[%emt 0:02:09]} g6 {[%emt 0:01:29]} 39. Kf3 {[%emt 0:00:48]} f5 {[%emt 0:00:19]} 40. gxf5 {[%emt 0:00:34]} gxf5 {[%emt 0:00:10]} 41. Ke3 {[%emt 0:30:21]} Rd7 {[%emt 0:31:09]} 42. Ra7 {[%emt 0:00:41]} Rxa7 {[%emt 0:00:08]} 43. bxa7 {[%emt 0:00:04]} Kb7 {[%emt 0:00:04]} 44. a8=Q+ {[%emt 0:00:05]} Kxa8 {[%emt 0:00:01]} 45. f4 {[%emt 0:00:09]} e4 {[%emt 0:00:04]} 46. Kd4 {[%emt 0:00:03]} Kb7 {[%emt 0:00:08]} 47. Ke5 {[%emt 0:00:03]} 1-0

[Event "DVM U14 2024"]
[Site "Heidelberg"]
[Date "2024.12.28"]
[Round "4"]
[White "Ahryzkov, Ivan"]
[Black "Spielvogel, Oliver"]
[Result "1-0"]
[ECO "B28"]
[WhiteElo "1813"]
[BlackElo "1543"]
[Annotator "NA RC"]
[PlyCount "41"]
[EventDate "2024.12.23"]
[EventType "team-tourn"]
[EventRounds "7"]
[EventCountry "GER"]
[SourceTitle "playchess.com"]
[Source "ChessBase"]
[SourceQuality "1"]
[TimeControl "40/5400+30:1800+30"]

1. e4 {[%emt 0:00:03]} c5 {[%emt 0:00:22]} 2. c3 {[%emt 0:00:08]} e6 {[%emt 0:00:13]} 3. d4 {[%emt 0:00:11]} a6 {[%emt 0:00:49]} 4. Bd3 {[%emt 0:01:26]} b5 {[%emt 0:00:15]} 5. Nf3 {[%emt 0:03:10]} Bb7 {[%emt 0:00:54]} 6. O-O {[%emt 0:02:41]} Nf6 {[%emt 0:00:35]} 7. Re1 {[%emt 0:03:17]} Be7 {[%emt 0:00:24]} 8. Nbd2 {[%emt 0:05:24]} O-O {[%emt 0:00:38]} 9. Nf1 {[%emt 0:00:09]} Nc6 {[%emt 0:00:53]} 10. Qe2 {[%emt 0:02:12]} d6 {[%emt 0:01:16]} 11. Bg5 {[%emt 0:04:04]} Qb6 {[%emt 0:06:35]} 12. e5 {[%emt 0:08:26]} Nd7 {[%emt 0:02:02]} 13. Qe4 {[%emt 0:10:52]} g6 {[%emt 0:03:10]} 14. Qh4 {[%emt 0:00:07]} Rfe8 {[%emt 0:08:24]} 15. Bxe7 {[%emt 0:08:18]} Nxe7 {[%emt 0:01:51]} 16. Ng5 {[%emt 0:01:55]} Nf8 {[%emt 0:00:28]} 17. Qf4 {[%emt 0:00:30]} Nf5 {[%emt 0:04:09]} 18. g4 {[%emt 0:02:32]} Nh6 {[%emt 0:00:31]} 19. Re3 {[%emt 0:01:11]} Kg7 {[%emt 0:08:26]} 20. Rh3 {[%emt 0:02:44]} Qc7 {[%emt 0:00:41]} 21. Qf6+ {[%emt 0:03:06]} 1-0

[Event "DVM U14 2024"]
[Site "Heidelberg"]
[Date "2024.12.28"]
[Round "4"]
[White "Allen, Phillipp"]
[Black "Fischermann, Simon"]
[Result "0-1"]
[ECO "D31"]
[WhiteElo "1793"]
[BlackElo "1899"]
[Annotator "NA RC"]
[PlyCount "70"]
[EventDate "2024.12.23"]
[EventType "team-tourn"]
[EventRounds "7"]
[EventCountry "GER"]
[SourceTitle "playchess.com"]
[Source "ChessBase"]
[SourceQuality "1"]
[TimeControl "40/5400+30:1800+30"]

1. c4 {[%emt 0:00:04]} e6 {[%emt 0:00:08]} 2. e4 {[%emt 0:00:55]} c6 {[%emt 0:02:25]} 3. d4 {[%emt 0:02:52]} d5 {[%emt 0:00:22]} 4. Nc3 {[%emt 0:01:03]} Be7 {[%emt 0:02:24]} 5. Nf3 {[%emt 0:05:51]} dxe4 {[%emt 0:07:23]} 6. Nxe4 {[%emt 0:00:19]} Nf6 {[%emt 0:00:07]} 7. Bd3 {[%emt 0:02:58]} Nbd7 $14 {[%emt 0:01:14]} 8. Nc3 {[%emt 0:05:06]} Nf8 {[%emt 0:01:27]} 9. O-O {[%emt 0:01:14]} Ng6 {[%emt 0:00:07]} 10. h4 {[%emt 0:04:21]} O-O {[%emt 0:00:52]} 11. Bg5 {[%emt 0:04:23]} b6 {[%emt 0:20:08]} 12. Qc2 {[%emt 0:05:33]} Nh5 {[%emt 0:13:30]} 13. g3 {[%emt 0:18:27]} Bb7 {[%emt 0:09:10]} 14. Rad1 {[%emt 0:06:27]} Qc7 {[%emt 0:09:09]} 15. Rfe1 {[%emt 0:06:41]} Rad8 {[%emt 0:03:09]} 16. d5 {[%emt 0:07:27]} Bxg5 {[%emt 0:04:11]} 17. hxg5 {[%emt 0:01:57]} exd5 {[%emt 0:02:33]} 18. cxd5 {[%emt 0:05:57]} c5 {[%emt 0:08:05]} 19. Kg2 {[%emt 0:02:53]} Bc8 {[%emt 0:06:10]} 20. Bf5 {[%emt 0:05:39]} Bxf5 {[%emt 0:04:31]} 21. Qxf5 {[%emt 0:00:17]} Ne7 {[%emt 0:00:53]} 22. Qe4 {[%emt 0:04:13]} Nc8 {[%emt 0:00:49]} 23. Nb5 {[%emt 0:03:27]} Qd7 {[%emt 0:00:23]} 24. a4 {[%emt 0:00:28]} a6 {[%emt 0:01:25]} 25. Nc3 {[%emt 0:03:53]} Nd6 {[%emt 0:00:04]} 26. Qe2 {[%emt 0:00:20]} Qg4 {[%emt 0:00:19]} 27. Ne5 {[%emt 0:00:43]} Nf4+ {[%emt 0:00:12]} 28. Kg1 {[%emt 0:00:30]} Nxe2+ {[%emt 0:00:12]} 29. Rxe2 {[%emt 0:00:12]} Qxg5 {[%emt 0:00:15]} 30. Kg2 {[%emt 0:00:21]} Rde8 {[%emt 0:01:01]} 31. f4 {[%emt 0:00:08]} Qd8 {[%emt 0:00:21]} 32. Kf3 {[%emt 0:00:40]} f6 {[%emt 0:00:32]} 33. Nc6 {[%emt 0:00:29]} Qd7 {[%emt 0:00:15]} 34. Rde1 {[%emt 0:00:49]} Rxe2 {[%emt 0:00:22]} 35. Rxe2 {[%emt 0:00:08]} Re8 {[%emt 0:00:06]} 0-1